bitfinex-derivatives/quotes_ETHF0:USTF0_20210406
["timestamp","ask_amount","ask_price","bid_price","bid_amount"]
[1617739859147,2.90695,2112.6,2112.4,10.6799]
[1617739859345,2.90695,2112.6,2112.5,5.5979]
[1617739859744,2.90695,2112.6,2112.5,3.1474]
[1617739859945,2.90695,2112.6,2112.4,7.0439]
[1617739860344,2.90695,2112.6,2112.5,5.3346]
[1617739860945,2.90695,2112.6,2112.4,5.72]
[1617739861145,2.90695,2112.6,2112.5,2.6]
[1617739861545,2.90695,2112.6,2111.2,2.90695]
[1617739861546,2.90695,2112.6,2111.2,4.90695]
[1617739861746,2.90695,2112.6,2112.5,5.69]
[1617739862146,2.90695,2112.6,2111.5,5.79]
[1617739862346,2.90695,2112.6,2112.5,5.71]
[1617739862747,2.90695,2112.6,2111.5,5.74]
[1617739862946,2.90695,2112.6,2112.5,5.9]
[1617739863346,2.90695,2112.6,2111.5,5.8]
[1617739863547,2.90695,2112.6,2111.9,5.92]
[1617739863746,2.90695,2112.6,2112.5,5.89]
[1617739863951,2.90695,2112.6,2111.5,5.86]
[1617739864147,2.90695,2112.6,2112.0,5.71]
[1617739864347,2.90695,2112.6,2112.5,5.81]
[1617739864548,2.90695,2112.6,2111.5,5.77]
[1617739864747,2.90695,2112.6,2112.1,5.67]
[1617739864947,2.90695,2112.6,2112.5,5.83]
[1617739865147,32.90695,2112.6,2111.5,5.77]
[1617739865347,30.0,2112.6,2112.2,4.6018]
[1617739865547,30.0,2112.6,2112.5,4.6608]
[1617739865748,30.0,2112.6,2111.6,5.83]
[1617739865948,30.0,2112.6,2112.3,5.68]
[1617739866148,30.0,2112.6,2112.5,5.6105]
[1617739866347,30.0,2112.6,2111.7,4.8]
[1617739866549,30.0,2112.6,2112.4,5.86]
[1617739866747,30.0,2112.6,2112.5,5.36]
[1617739866949,30.0,2112.6,2111.8,3.93]
[1617739867149,30.0,2112.6,2110.6,4.90695]
[1617739867350,30.0,2112.6,2112.5,4.2912]
[1617739867549,32.90695,2112.6,2111.9,5.8]
[1617739867751,32.90695,2112.6,2110.6,4.90695]
[1617739867950,32.90695,2112.6,2112.5,5.74]
[1617739868150,32.90695,2112.6,2112.0,5.23]
[1617739868350,32.90695,2112.6,2110.6,4.90695]
[1617739868550,32.90695,2112.6,2112.5,5.85]
[1617739868950,32.90695,2112.6,2111.7,5.67]
[1617739869151,32.90695,2112.6,2112.5,5.3]
[1617739869552,32.90695,2112.6,2111.8,5.75]
[1617739869751,32.90695,2112.6,2112.5,5.74]
[1617739870151,32.90695,2112.6,2111.9,5.8]
[1617739870352,32.90695,2112.6,2112.5,5.91]
[1617739870552,32.64995,2112.6,2112.5,5.91]
[1617739870751,32.64995,2112.6,2112.0,5.68]
[1617739870952,32.64995,2112.6,2112.5,5.8]
[1617739871352,32.64995,2112.6,2112.1,5.94]
[1617739871552,2.90695,2112.2,2111.5,5.7]
[1617739871754,2.90695,2112.2,2110.8,2.0]
[1617739871952,29.743,2112.1,2110.8,2.0]
[1617739872152,29.743,2112.1,2111.6,5.71]
[1617739872352,29.743,2112.1,2111.5,5.96]
[1617739872553,29.743,2112.1,2110.8,2.0]
[1617739872753,29.743,2112.1,2111.7,5.69]
[1617739872954,29.743,2112.1,2111.5,5.78]
[1617739873153,29.743,2112.1,2110.8,2.0]
[1617739873354,29.743,2112.1,2111.8,5.72]
[1617739873553,2.90695,2111.9,2111.5,5.92]
[1617739873752,2.90695,2111.9,2110.8,2.0]
[1617739874153,2.90695,2111.9,2111.5,5.78]
[1617739875553,2.90695,2111.6,2111.5,5.2981]
[1617739875754,34.59755,2111.6,2111.5,5.2981]
[1617739875953,34.59755,2111.6,2110.9,5.75]
[1617739876356,34.59755,2111.6,2110.6,2.90695]
[1617739876357,34.59755,2111.6,2111.5,2.4472]
[1617739876554,34.59755,2111.6,2111.0,5.77]
[1617739876957,34.59755,2111.6,2111.5,5.89]
[1617739877156,34.59755,2111.6,2111.1,5.91]
[1617739877555,31.6906,2111.6,2111.5,5.95]
[1617739877757,31.6906,2111.6,2111.2,5.94]
[1617739878155,31.6906,2111.6,2111.5,5.76]
[1617739878355,31.6906,2111.6,2111.3,5.74]
[1617739878756,31.6906,2111.6,2111.5,5.9]
[1617739878956,31.6906,2111.6,2111.4,5.22]
[1617739879359,31.6906,2111.6,2111.5,5.35]
[1617739879558,34.59755,2111.6,2110.3,15.68625]
[1617739879757,34.59755,2111.6,2111.1,5.75]
[1617739879958,34.59755,2111.6,2111.5,5.75]
[1617739880161,34.59755,2111.6,2110.3,15.68625]
[1617739880357,34.59755,2111.6,2111.2,5.78]
[1617739880559,34.59755,2111.6,2111.5,5.88]
[1617739880963,34.59755,2111.6,2111.3,5.73]
[1617739881161,34.59755,2111.6,2111.5,5.73]
[1617739881562,34.59755,2111.6,2111.4,8.7117]
[1617739881764,34.59755,2111.6,2111.4,2.8817]
[1617739881964,34.59755,2111.6,2111.5,5.95]
[1617739882165,34.59755,2111.6,2110.5,3.0016]
[1617739882364,34.59755,2111.6,2110.3,15.68625]
[1617739882566,34.59755,2111.6,2111.5,5.89]
[1617739882765,34.59755,2111.6,2110.6,5.85]
[1617739882966,34.59755,2111.6,2110.4,5.78]
[1617739883166,34.59755,2111.6,2110.7,5.74]
[1617739883568,2.90695,2110.8,2110.4,5.78]
[1617739883766,2.90695,2110.8,2110.3,15.68625]
[1617739884169,2.90695,2110.8,2110.5,5.77]
[1617739884367,2.90695,2110.8,2110.4,5.77]
[1617739884566,2.90695,2110.8,2110.3,15.68625]
[1617739884768,2.90695,2110.8,2110.6,5.68]
[1617739884965,2.90695,2110.8,2110.4,5.81]
[1617739885165,2.90695,2110.8,2110.3,15.68625]
[1617739885367,2.90695,2110.8,2110.7,5.8]
[1617739885567,2.90695,2110.8,2110.4,5.84]
[1617739885767,2.90695,2110.5,2110.3,15.68625]
[1617739886167,2.90695,2110.5,2110.4,5.81]
[1617739886367,2.90695,2110.5,2110.4,7.81]
[1617739889370,2.90695,2110.5,2110.4,5.81]
[1617739894177,2.90695,2110.5,2110.4,7.81]
[1617739895184,2.90695,2110.5,2110.4,5.81]
[1617739895984,5.41445,2110.5,2110.4,5.81]
[1617739898086,2.90695,2110.5,2110.4,5.81]
[1617739906992,2.90695,2110.5,2110.4,5.2391]
[1617739908294,32.90695,2110.5,2110.4,5.2391]
[1617739909995,32.90695,2110.5,2110.4,4.1959]
[1617739913698,34.90695,2110.5,2108.9,12.6114]
[1617739913899,2.90695,2109.0,2108.9,12.6114]
[1617739914500,2.90695,2109.0,2108.9,18.4814]
[1617739919008,2.90695,2109.0,2108.9,5.87]
[1617739919408,2.90695,2109.0,2108.6,5.75]
[1617739919609,2.90695,2109.0,2108.9,5.78]
[1617739919809,32.90695,2109.0,2108.9,5.78]
[1617739920010,32.90695,2109.0,2108.6,5.71]
[1617739920209,2.90695,2109.0,2108.9,5.73]
[1617739920612,2.90695,2109.0,2108.9,2.2304]
[1617739920812,2.90695,2109.0,2108.9,8.0704]
[1617739921409,2.90695,2109.0,2108.9,10.0704]
[1617739921809,2.90695,2109.0,2108.9,12.97735]
[1617739925617,30.0,2110.9,2108.9,12.97735]
[1617739926019,1.1,2111.9,2109.3,2.90695]
[1617739926020,30.0,2110.8,2109.3,2.90695]
[1617739926420,30.0,2110.8,2109.4,5.91]
[1617739926621,30.0,2110.8,2109.4,8.8334]
[1617739926828,30.9529,2110.8,2109.4,8.8334]
[1617739927923,2.90695,2109.5,2109.4,8.8334]
[1617739934331,2.90695,2109.5,2109.4,5.91]
[1617739941034,6.72465,2109.5,2109.4,5.91]
[1617739941237,5.78425,2109.5,2109.4,5.91]
[1617739941637,35.78425,2109.5,2109.1,5.96]
[1617739941836,35.78425,2109.5,2109.4,5.78]
[1617739942036,35.78425,2109.5,2109.4,4.824]
[1617739942238,36.72155,2109.5,2109.2,5.75]
[1617739942436,36.72155,2109.5,2109.4,5.83]
[1617739942637,36.72155,2109.5,2108.8,5.77]
[1617739942837,36.72155,2109.5,2109.3,5.7]
[1617739943037,36.72155,2109.5,2109.4,5.42]
[1617739943440,36.72155,2109.5,2108.9,5.77]
[1617739943637,36.72155,2109.5,2108.6,16.27985]
[1617739943638,38.72155,2109.5,2109.4,5.97]
[1617739944045,38.72155,2109.5,2109.0,5.79]
[1617739944244,2.90695,2109.1,2108.7,5.86]
[1617739944443,32.1132,2109.0,2108.6,16.27985]
[1617739944842,32.1132,2109.0,2108.7,5.95]
[1617739945948,32.1132,2109.0,2108.1,13.2064]
[1617739945949,32.1132,2109.0,2108.2,5.79]
[1617739946146,2.90695,2108.3,2108.2,8.69695]
[1617739946948,5.34935,2108.3,2108.2,8.69695]
[1617739947351,35.34935,2108.3,2108.2,4.85]
[1617739947549,35.34935,2108.3,2107.3,13.2012]
[1617739947750,35.34935,2108.3,2108.0,2.7492]
[1617739947952,35.34935,2108.3,2108.2,5.93]
[1617739948150,35.34935,2108.3,2108.0,1.0391]
[1617739948350,5.34935,2108.3,2108.0,1.0391]
[1617739948551,2.90695,2108.3,2108.2,8.0495]
[1617739948752,2.90695,2108.3,2108.2,2.2595]
[1617739949151,2.90695,2108.3,2108.2,8.0295]
[1617739949351,2.90695,2108.3,2108.2,7.9696]
[1617739949551,3.86905,2108.3,2108.2,3.2409]
[1617739949752,33.86905,2108.3,2108.2,3.181]
[1617739951052,32.90695,2108.3,2108.2,3.181]
[1617739952657,2.90695,2108.3,2108.2,3.181]
[1617739956657,33.85605,2108.3,2108.2,3.181]
[1617739957659,33.85605,2108.3,2108.2,2.5629]
[1617739958659,33.85605,2108.3,2108.0,1.0391]
[1617739958860,33.85605,2108.3,2108.1,5.8]
[1617739968173,32.90695,2108.3,2108.1,5.8]
[1617739968372,2.90695,2108.3,2108.1,5.8]
[1617739972676,2.90695,2108.3,2108.1,7.8004]
[1617739974283,3.86855,2108.3,2108.1,7.8004]
[1617739974479,3.86855,2108.3,2108.1,7.7333]
[1617739974679,2.90695,2108.3,2108.1,7.7333]
[1617739975884,30.0,2109.2,2108.1,7.7333]
[1617739976381,30.0,2109.2,2108.4,2.90695]
[1617739976782,30.0,2109.2,2108.5,5.82]
[1617739978085,0.9373,2109.5,2108.5,5.0973]
[1617739978482,2.90695,2108.6,2108.5,5.0973]
[1617739980686,30.0,2110.0,2108.5,15.0973]
[1617739980687,2.90695,2108.9,2108.5,15.0973]
[1617739982591,0.9413,2109.6,2108.8,5.51895]
[1617739982791,30.0,2110.3,2108.8,5.51895]
[1617739982991,30.0,2110.3,2108.8,11.36895]
[1617739984291,30.0,2111.5,2108.8,11.36895]
[1617739984492,30.0,2111.5,2109.4,2.90695]
[1617739984693,2.0,2111.4,2108.8,8.462]
[1617739984892,30.0,2111.3,2108.8,8.462]
[1617739985092,2.0,2111.2,2108.8,8.462]
[1617739985294,30.0,2111.1,2108.8,8.462]
[1617739985492,2.0,2111.0,2108.8,8.462]
[1617739985695,30.0,2110.9,2108.8,8.462]
[1617739985894,2.9529,2110.8,2108.8,8.462]
[1617739986094,30.0,2110.7,2108.8,8.462]
[1617739986494,30.0,2110.7,2109.3,2.90695]
[1617739986995,30.0,2110.7,2109.4,5.82]
[1617739987697,32.0,2110.7,2109.4,5.82]
[1617739988297,32.0,2110.7,2108.9,5.96]
[1617739988497,2.90695,2109.0,2108.9,2.90695]
[1617739989099,2.90695,2109.0,2108.9,5.49695]
[1617739993503,2.90695,2109.0,2108.9,2.59]
[1617739993905,2.90695,2109.0,2108.7,5.72]
[1617739994305,2.90695,2109.0,2108.9,15.73]
[1617739994506,2.90695,2109.0,2108.9,10.0]
[1617739994904,2.90695,2109.0,2108.9,15.83]
[1617740002615,2.90695,2109.2,2108.9,15.83]
[1617740003419,2.90695,2109.2,2109.0,4.0607]
[1617740003617,2.90695,2109.2,2109.1,5.88]
[1617740004719,2.90695,2109.6,2109.1,10.78695]
[1617740005128,1.1,2111.8,2109.1,10.78695]
[1617740005324,30.0,2111.3,2109.1,40.78695]
[1617740005525,1.1,2111.8,2109.1,40.78695]
[1617740005722,2.0,2112.0,2109.1,40.78695]
[1617740006122,2.0,2112.0,2109.2,12.9177]
[1617740006322,2.0,2112.0,2109.2,27.3985]
[1617740006724,30.0,2111.9,2110.1,2.90695]
[1617740006924,2.0,2111.8,2110.1,5.27195]
[1617740007125,30.0,2111.7,2110.2,5.74]
[1617740007325,2.0,2111.6,2110.2,5.74]
[1617740007524,30.0,2111.5,2110.2,5.74]
[1617740008626,2.90695,2110.3,2110.2,5.74]
[1617740010430,2.90695,2110.3,2109.4,5.88]
[1617740010630,2.90695,2110.3,2109.3,5.7]
[1617740010831,0.9521,2110.8,2109.8,2.90695]
[1617740011033,30.0,2111.3,2109.9,5.69]
[1617740011633,32.0,2111.3,2109.9,5.69]
[1617740011832,30.0,2111.3,2109.9,5.69]
[1617740012833,2.90695,2110.0,2109.9,5.69]
[1617740015335,2.90695,2110.0,2109.9,15.69]
[1617740016737,2.90695,2110.0,2109.9,17.69]
[1617740018339,30.0,2111.8,2109.9,17.69]
[1617740018741,30.0,2111.8,2110.6,2.90695]
[1617740018940,30.0,2111.8,2110.6,4.73295]
[1617740019139,2.0,2112.4,2110.6,4.73295]
[1617740019341,2.0,2112.4,2110.7,5.92]
[1617740019540,2.0,2112.4,2110.7,7.92]
[1617740019744,0.9545,2113.3,2110.7,7.92]
[1617740019941,0.9545,2113.3,2110.7,37.92]
[1617740020241,0.9545,2113.3,2110.8,12.592]
[1617740020442,0.9545,2113.3,2110.9,32.0]
[1617740020643,30.9545,2113.3,2110.9,37.67]
[1617740020841,32.9545,2113.3,2111.6,5.90875]
[1617740021242,32.9545,2113.3,2111.7,5.94]
[1617740022841,2.90695,2111.8,2111.7,5.94]
[1617740024044,32.90695,2111.8,2111.7,5.94]
[1617740024243,32.90695,2111.8,2111.0,13.0072]
[1617740024244,32.90695,2111.8,2111.1,5.76]
[1617740024443,32.90695,2111.8,2111.7,4.4269]
[1617740024642,32.90695,2111.8,2111.1,5.7]
[1617740024845,5.09715,2111.2,2111.1,5.7]
[1617740025045,5.09715,2111.2,2111.0,13.0072]
[1617740025244,5.09715,2111.2,2111.1,5.87]
[1617740026044,35.09715,2111.2,2111.1,5.87]
[1617740026244,35.09715,2111.2,2111.1,5.5556]
[1617740026447,35.09715,2111.2,2111.1,5.0623]
[1617740026644,35.09715,2111.2,2110.9,5.94]
[1617740027046,35.09715,2111.2,2111.1,5.69]
[1617740027447,35.09715,2111.2,2110.9,5.77]
[1617740028547,37.09715,2111.2,2110.9,5.77]
[1617740029146,37.09715,2111.2,2109.1,21.28325]
[1617740029348,37.09715,2111.2,2109.2,5.9]
[1617740029547,37.09715,2111.2,2111.0,4.0526]
[1617740030148,37.09715,2111.2,2111.0,3.9782]
[1617740031453,37.09715,2111.2,2111.0,3.2692]
[1617740031651,37.09715,2111.2,2111.0,2.567]
[1617740032651,37.09715,2111.2,2111.0,1.6079]
[1617740033251,37.09715,2111.2,2111.0,1.3685]
[1617740033652,37.09715,2111.2,2111.0,0.4385]
[1617740034058,37.09715,2111.2,2110.9,9.054]
[1617740034655,37.09715,2111.2,2110.9,8.796]
[1617740034857,37.09715,2111.2,2110.9,8.3372]
[1617740036057,37.09715,2111.2,2111.0,5.89]
[1617740038462,35.09715,2111.2,2111.0,5.89]
[1617740038661,32.90695,2111.2,2111.0,5.89]
[1617740040561,2.0,2111.1,2111.0,5.89]
[1617740040762,32.0,2111.1,2111.0,5.89]
[1617740040962,32.0,2111.1,2111.0,4.97]
[1617740041166,32.0,2111.1,2110.9,8.3372]
[1617740041766,32.0,2111.1,2110.9,7.383]
[1617740042765,32.0,2111.1,2110.9,7.1362]
[1617740042966,32.0,2111.1,2110.9,6.4434]
[1617740043168,32.0,2111.1,2110.9,5.5103]
[1617740043368,32.0,2111.1,2110.9,4.5903]
[1617740043568,32.0,2111.1,2110.9,4.3503]
[1617740045969,32.0,2111.1,2110.9,4.2506]
[1617740046270,32.0,2111.1,2110.9,4.1515]
[1617740047770,32.0,2111.1,2111.0,5.95]
[1617740048370,32.0,2111.1,2111.0,5.3332]
[1617740048770,30.0,2111.1,2111.0,5.3332]
[1617740048970,30.0,2111.1,2111.0,4.5049]
[1617740049170,30.0,2111.1,2111.0,1.4129]
[1617740050477,2.90695,2111.2,2111.0,1.4129]
[1617740050675,2.90695,2111.2,2111.0,4.1971]
[1617740052078,32.90695,2111.2,2111.0,4.1971]
[1617740052277,32.90695,2111.2,2111.0,1.4129]
[1617740057680,2.90695,2111.2,2111.0,1.4129]
[1617740073301,2.90695,2111.2,2111.1,2.90695]
[1617740073702,2.90695,2111.2,2111.1,8.79695]
[1617740074103,2.90695,2111.2,2111.1,10.79695]
[1617740082711,2.90695,2111.2,2111.1,8.79695]
[1617740084915,2.90695,2111.2,2111.1,10.79695]
[1617740088321,2.90695,2111.2,2111.1,8.79695]
[1617740095428,2.90695,2111.2,2111.1,10.99055]
[1617740101743,2.90695,2111.2,2111.1,8.79695]
[1617740102137,2.90695,2111.2,2111.1,5.89]
[1617740102335,2.90695,2111.2,2111.1,5.4341]
[1617740102534,2.90695,2111.2,2111.0,5.87]
[1617740102935,2.90695,2111.2,2111.1,5.73]
[1617740103135,2.90695,2111.2,2111.0,5.74]
[1617740103840,32.90695,2111.2,2111.0,5.74]
[1617740106039,2.90695,2111.2,2111.0,5.74]
[1617740112548,32.90695,2111.2,2111.0,5.74]
[1617740112751,34.87295,2111.2,2111.0,5.74]
[1617740113351,36.87295,2111.2,2111.0,5.74]
[1617740114452,34.87295,2111.2,2111.0,5.74]
[1617740115754,34.87295,2111.2,2111.0,5.1618]
[1617740117561,4.87295,2111.2,2111.0,5.1618]
[1617740118558,2.90695,2111.2,2111.0,5.1618]
[1617740122069,5.85115,2111.2,2111.0,5.1618]
[1617740122268,35.85115,2111.2,2111.0,5.1618]
[1617740122869,37.85115,2111.2,2111.0,5.1618]
[1617740125273,35.85115,2111.2,2111.0,5.1618]
[1617740125673,5.85115,2111.2,2111.0,5.1618]
[1617740128177,2.90695,2111.2,2111.0,5.1618]
[1617740134386,2.90695,2111.2,2111.0,4.0823]
[1617740142799,32.90695,2111.2,2111.0,4.0823]
[1617740145804,32.90695,2111.2,2110.9,0.4892]
[1617740146007,36.00695,2111.2,2110.9,0.0742]
[1617740148010,36.00695,2111.2,2111.0,5.81]
[1617740150213,36.00695,2111.2,2111.0,5.7687]
[1617740150413,36.00695,2111.2,2111.0,4.0598]
[1617740150817,36.00695,2111.2,2111.0,3.7822]
[1617740151416,36.00695,2111.2,2111.0,3.6928]
[1617740151619,34.90695,2111.2,2111.0,3.6928]
[1617740152315,34.90695,2111.2,2111.0,2.8048]
[1617740153116,34.90695,2111.2,2111.0,1.9085]
[1617740153818,2.90695,2111.2,2111.0,1.9085]
[1617740157323,2.90695,2111.2,2111.0,1.8424]
[1617740159722,32.90695,2111.2,2111.0,1.8424]
[1617740165430,32.90695,2111.2,2111.0,1.5953]
[1617740166431,2.90695,2111.2,2111.0,1.5953]
[1617740166831,2.90695,2111.2,2111.0,3.9126]
[1617740168035,32.90695,2111.2,2111.0,3.9126]
[1617740168833,2.90695,2111.2,2111.0,3.9126]
[1617740170233,32.90695,2111.2,2111.0,1.5953]
[1617740171635,32.90695,2111.2,2110.9,0.0742]
[1617740172241,34.00695,2111.2,2110.9,0.0742]
[1617740172737,34.90695,2111.2,2110.9,0.0742]
[1617740173943,36.00695,2111.2,2110.9,0.0742]
[1617740174144,36.00695,2111.2,2109.9,13.6683]
[1617740174742,36.00695,2111.2,2110.0,5.89]
[1617740176042,2.90695,2110.1,2110.0,5.89]
[1617740178743,2.90695,2110.1,2109.5,12.6664]
[1617740178744,32.90695,2110.1,2109.6,5.95]
[1617740179145,32.90695,2110.1,2109.5,12.6664]
[1617740179146,32.90695,2110.1,2110.0,4.8284]
[1617740179346,32.90695,2110.1,2109.6,5.74]
[1617740179747,32.90695,2110.1,2110.0,5.68]
[1617740179948,32.90695,2110.1,2109.5,12.6664]
[1617740179949,32.90695,2110.1,2109.6,5.71]
[1617740180145,2.90695,2109.7,2109.6,5.71]
[1617740180346,2.90695,2109.7,2109.5,12.6664]
[1617740180646,32.90695,2109.7,2109.6,4.948]
[1617740181046,32.90695,2109.7,2109.1,12.9248]
[1617740181748,32.90695,2109.7,2109.6,10.0]
[1617740182148,34.90695,2109.7,2109.6,10.0]
[1617740182349,34.90695,2109.7,2107.2,2.571]
[1617740182547,34.90695,2109.7,2107.1,6.97259996]
[1617740182748,34.90695,2109.7,2108.0,0.9398]
[1617740182949,34.90695,2109.7,2107.1,2.0]
[1617740183147,34.90695,2109.7,2108.1,5.76]
[1617740183347,34.90695,2109.7,2107.2,5.7]
[1617740183752,34.90695,2109.7,2108.2,5.82]
[1617740183949,34.90695,2109.7,2107.2,5.72]
[1617740184150,32.0,2109.7,2108.3,5.69]
[1617740184348,30.0,2109.6,2108.3,5.69]
[1617740184549,2.0,2109.5,2107.5,0.16]
[1617740184750,31.9152,2109.4,2108.4,5.91]
[1617740184952,2.0,2109.3,2108.4,5.91]
[1617740185151,30.0,2109.2,2107.5,5.96]
[1617740185350,30.0,2109.2,2108.5,5.89]
[1617740185750,30.0,2109.2,2107.5,5.82]
[1617740186151,2.90695,2107.6,2107.5,5.82]
[1617740187652,2.0,2109.3,2107.5,5.82]
[1617740187854,30.0,2109.0,2107.5,5.82]
[1617740188253,30.0,2109.0,2107.8,2.90695]
[1617740188554,30.0,2109.0,2107.9,5.81]
[1617740189253,2.0,2109.8,2107.9,5.81]
[1617740189456,30.0,2109.7,2107.9,5.81]
[1617740189857,32.0,2109.7,2107.9,5.81]
[1617740190259,2.90695,2108.0,2107.9,5.81]
[1617740198265,2.90695,2108.0,2107.9,8.71695]
[1617740200067,3.85505,2108.0,2107.9,8.71695]
[1617740200468,2.90695,2108.0,2107.9,8.71695]
[1617740208776,2.90695,2108.0,2107.9,5.81]
[1617740212783,2.90695,2108.0,2107.9,7.876]
[1617740213182,30.0,2109.5,2107.9,9.876]
[1617740213987,30.0,2109.5,2108.0,13.7508]
[1617740214189,0.9481,2109.6,2108.1,2.0]
[1617740214587,0.9481,2109.6,2108.4,5.83305]
[1617740214786,0.9481,2109.6,2108.4,7.83305]
[1617740214987,0.9481,2109.6,2108.5,5.81]
[1617740215187,0.9481,2109.6,2108.6,2.0]
[1617740215787,0.9481,2109.6,2108.7,5.92]
[1617740216486,0.9481,2109.6,2108.9,2.90695]
[1617740216689,0.9481,2109.6,2108.9,5.59105]
[1617740216888,0.9481,2109.6,2109.0,5.84]
[1617740218491,2.90695,2109.1,2109.0,5.84]
[1617740222292,1.1,2110.5,2109.0,5.84]
[1617740222493,1.1,2110.5,2109.9,2.90695]
[1617740222694,1.1,2110.5,2109.9,5.55725]
[1617740222893,1.1,2110.5,2110.0,5.78]
[1617740223892,30.0,2111.5,2110.0,5.78]
[1617740224691,30.0,2111.5,2110.2,2.90695]
[1617740225093,30.0,2111.5,2110.3,5.81]
[1617740226693,2.90695,2110.4,2110.3,5.81]
[1617740227595,2.90695,2110.4,2110.3,5.6165]
[1617740232002,2.0388,2111.9,2110.3,5.6165]
[1617740232203,30.0,2111.8,2110.3,5.6165]
[1617740232604,30.0,2111.8,2110.8,2.90695]
[1617740232804,30.0,2111.8,2110.8,5.37635]
[1617740233205,30.0,2111.8,2110.9,5.68]
[1617740233907,32.0,2111.8,2110.9,5.68]
[1617740234709,2.90695,2111.0,2110.9,5.68]
[1617740234907,2.90695,2111.0,2110.1,5.95]
[1617740235107,2.90695,2111.0,2110.0,26.1821]
[1617740235108,2.90695,2111.0,2110.9,5.87]
[1617740235507,2.90695,2111.0,2110.1,5.86]
[1617740235706,2.90695,2111.0,2110.9,5.94]
[1617740235908,2.90695,2111.0,2110.9,15.94]
[1617740236107,2.90695,2111.0,2110.9,10.0]
[1617740236307,2.90695,2111.0,2110.9,15.94]
[1617740238108,2.90695,2111.0,2110.9,15.3623]
[1617740238509,2.90695,2111.0,2110.9,15.3423]
[1617740242515,0.9527,2111.9,2110.9,15.3423]
[1617740242716,0.9527,2111.9,2111.0,2.90695]
[1617740243317,0.9527,2111.9,2111.1,5.79]
[1617740243519,1.1,2112.1,2111.1,5.79]
[1617740244817,1.1,2112.1,2111.3,2.90695]
[1617740245218,1.1,2112.1,2111.4,5.7]
[1617740246720,2.90695,2111.5,2111.4,5.7]
[1617740249920,2.90695,2111.5,2111.1,5.68]
[1617740250321,2.90695,2111.5,2111.0,12.7919]
[1617740250322,2.90695,2111.5,2111.4,5.73]
[1617740250521,2.90695,2111.5,2111.1,5.72]
[1617740250919,2.90695,2111.2,2111.0,12.7919]
[1617740251120,2.90695,2111.2,2111.1,5.71]
[1617740254926,2.90695,2111.2,2111.1,8.0482]
[1617740256228,2.90695,2111.2,2111.1,5.71]
[1617740278950,2.90695,2111.2,2111.1,8.61695]
[1617740290063,2.90695,2111.2,2111.1,10.61695]
[1617740292569,1.1,2112.6,2111.1,10.61695]
[1617740292968,1.1,2112.6,2111.2,13.7836]
[1617740293168,1.1,2112.6,2112.0,5.87315]
[1617740293370,1.1,2112.6,2112.1,5.68]
[1617740295078,2.90695,2112.2,2112.1,5.68]
[1617740298178,2.90695,2112.2,2111.3,5.89]
[1617740298379,2.90695,2112.2,2112.1,5.95]
[1617740298779,5.58835,2112.2,2111.3,5.83]
[1617740298979,35.58835,2112.2,2112.1,5.91]
[1617740299180,35.58835,2112.2,2112.1,4.0016]
[1617740299388,35.58835,2112.2,2111.3,5.74]
[1617740299579,37.58835,2112.2,2111.3,5.74]
[1617740301080,2.90695,2111.4,2111.3,5.74]
[1617740301281,32.90695,2111.4,2111.3,5.74]
[1617740301481,35.77785,2111.4,2111.3,5.74]
[1617740302280,37.77785,2111.4,2110.9,6.5433]
[1617740302480,37.77785,2111.4,2110.9,5.9972]
[1617740302679,37.77785,2111.4,2110.9,5.3772]
[1617740302881,37.77785,2111.4,2110.9,4.8939]
[1617740303080,2.90695,2111.0,2110.9,4.8939]
[1617740303281,34.90695,2111.0,2110.9,4.8939]
[1617740303482,34.90695,2111.0,2110.9,4.8252]
[1617740303680,34.90695,2111.0,2110.9,4.5152]
[1617740304282,34.90695,2111.0,2109.7,13.097]
[1617740304481,36.00695,2111.0,2109.7,11.0202]
[1617740304682,36.00695,2111.0,2109.7,4.3538]
[1617740304885,36.00695,2111.0,2108.7,13.6173]
[1617740305081,36.00695,2111.0,2109.2,2.90695]
[1617740305082,33.1,2111.0,2109.2,2.90695]
[1617740305483,33.1,2111.0,2109.3,5.93]
[1617740306082,33.1,2111.0,2109.3,7.7703]
[1617740306285,32.0,2111.0,2109.3,7.7703]
[1617740306483,2.0,2111.0,2109.3,7.7703]
[1617740306682,30.0,2110.9,2109.3,7.7703]
[1617740307083,2.90695,2109.6,2109.5,2.90695]
[1617740307485,2.90695,2109.6,2109.5,8.79695]
[1617740308286,30.9417,2110.9,2109.5,8.79695]
[1617740308486,30.0,2110.9,2109.5,8.79695]
[1617740309087,30.0,2110.9,2109.8,2.90695]
[1617740309287,30.0,2110.9,2109.8,5.71685]